bitfinex/quotes_SOLUSD_20250123
["timestamp","ask_amount","ask_price","bid_price","bid_amount"]
[1737612434793,35.41800552,248.68,248.59,11.67112152]
[1737612435293,35.41800552,248.68,248.6,312.0]
[1737612435471,83.1,248.69,248.61,11.64112152]
[1737612435669,1.5934,248.79,248.63,11.64112152]
[1737612435887,94.74112152,248.78,248.69,11.64112152]
[1737612436683,23.776884,248.77,248.69,11.64112152]
[1737612436895,23.776884,248.77,248.69,15.66212152]
[1737612437699,94.74112152,248.78,248.69,15.66212152]
[1737612438098,23.776884,248.77,248.69,15.66212152]
[1737612438688,23.776884,248.77,248.7,312.0]
[1737612442898,94.74112152,248.78,248.71,11.64112152]
[1737612442899,83.1,248.78,248.71,11.64112152]
[1737612443295,11.64112152,248.82,248.73,11.64112152]
[1737612443597,83.1,248.84,248.77,11.64112152]
[1737612443772,83.1,248.84,248.79,11.64112152]
[1737612444601,0.063,248.85,248.81,11.64112152]
[1737612444980,0.063,248.85,248.82,4.0189]
[1737612445600,0.063,248.85,248.81,11.64112152]
[1737612446099,0.063,248.85,248.82,312.0]
[1737612448385,0.0001,248.83,248.82,312.0]
[1737612451309,0.0001,248.85,248.84,20.0]
[1737612451499,0.0001,248.85,248.84,11.64112152]
[1737612452306,0.0001,248.85,248.84,31.64112152]
[1737612452788,0.0001,248.85,248.84,20.0]
[1737612453311,0.0001,248.85,248.81,4.019]
[1737612454110,0.0001,248.85,248.78,11.64112152]
[1737612454320,0.0001,248.85,248.77,4.0197]
[1737612454493,0.0001,248.85,248.77,316.0197]
[1737612454692,23.776984,248.85,248.77,316.0197]
[1737612455491,23.776984,248.85,248.77,4.0197]
[1737612456091,23.776984,248.85,248.78,11.64112152]
[1737612456603,0.0001,248.85,248.8,11.64112152]
[1737612457398,0.0001,248.85,248.75,1.0]
[1737612457399,0.0001,248.85,248.82,11.64112152]
[1737612457604,0.0001,248.85,248.84,11.64112152]
[1737612458030,0.0001,248.85,248.84,15.65972152]
[1737612458721,0.0001,248.87,248.86,20.0]
[1737612459026,0.063,248.98,248.91,20.0]
[1737612459324,0.063,248.98,248.97,11.64112152]
[1737612459709,0.0001,248.98,248.97,11.64112152]
[1737612459905,0.0001,248.98,248.97,12.2433724]
[1737612460101,0.0001,248.98,248.97,28.90099392]
[1737612460307,0.063,249.08,249.01,1.0]
[1737612460609,0.063,249.08,249.07,11.64112152]
[1737612460824,0.063,249.08,249.05,11.64112152]
[1737612461525,0.063,249.08,249.07,11.64112152]
[1737612461731,0.063,249.08,249.07,18.55421479]
[1737612462027,0.063,249.08,249.07,330.55421479]
[1737612462604,0.063,249.08,249.07,312.0]
[1737612464524,0.063,249.08,249.07,330.55421479]
[1737612465627,0.063,249.08,249.07,18.55421479]
[1737612467835,0.0001,249.08,249.07,49.55421479]
[1737612468058,0.063,249.12,249.11,20.0]
[1737612468343,0.063,249.12,249.11,38.55421479]
[1737612468513,0.063,249.12,249.11,350.55421479]
[1737612468836,0.063,249.12,249.11,354.56841479]
[1737612473248,0.063,249.12,249.11,42.56841479]
[1737612475333,0.063,249.12,249.11,38.55421479]
[1737612477942,0.063,249.12,249.11,20.0]
[1737612479765,0.063,249.12,249.09,22.56881479]
[1737612480670,0.063,249.12,249.11,20.0]
[1737612481265,0.063,249.12,249.11,38.55421479]
[1737612483243,0.0001,249.13,249.11,57.10842958]
[1737612483445,0.0001,249.15,249.14,1.0]
[1737612483748,0.0001,249.15,249.14,13.18414437]
[1737612483975,0.0001,249.15,249.14,14.18414437]
[1737612484168,0.063,249.25,249.17,1.0]
[1737612484484,0.063,249.25,249.22,11.58236054]
[1737612485276,0.063,249.25,249.22,15.59486054]
[1737612487471,0.063,249.25,249.22,16.19656192]
[1737612487853,0.0001,249.23,249.22,359.19656192]
[1737612488069,0.0001,249.25,249.24,22.0]
[1737612488276,0.0001,249.25,249.24,45.76625506]
[1737612488479,0.0001,249.25,249.24,47.36135506]
[1737612488860,0.0001,249.25,249.24,33.77899452]
[1737612489384,0.0001,249.25,249.24,33.17746054]
[1737612489577,0.0001,249.25,249.24,37.18956054]
[1737612490886,0.0001,249.25,249.24,48.77192108]
[1737612491351,0.0001,249.25,249.24,327.59446054]
[1737612491553,0.0001,249.25,249.24,11.58236054]
[1737612493869,0.0001,249.25,249.24,23.16472108]
[1737612494554,0.0001,249.25,249.24,323.58236054]
[1737612496359,0.0001,249.25,249.24,335.16472108]
[1737612497182,0.0001,249.25,249.24,323.58236054]
[1737612498365,0.0001,249.25,249.23,4.0123]
[1737612498559,0.0001,249.25,249.24,31.58236054]
[1737612501286,0.0001,249.25,249.24,343.58236054]
[1737612501657,0.0001,249.25,249.24,20.0]
[1737612501861,0.0001,249.25,249.23,4.0123]
[1737612504685,0.0001,249.25,249.24,312.0]
[1737612505299,0.0001,249.25,249.23,4.0123]
[1737612506390,0.0001,249.25,249.24,312.0]
[1737612511102,0.0001,249.25,249.24,323.58236054]
[1737612511401,0.0001,249.25,249.24,11.58236054]
[1737612514210,0.0001,249.25,249.24,323.58236054]
[1737612514887,0.0001,249.25,249.24,11.58236054]
[1737612517602,0.0001,249.25,249.24,15.59446054]
[1737612517911,0.0001,249.25,249.24,327.59446054]
[1737612519407,0.0001,249.25,249.24,327.62446054]
[1737612520700,0.0001,249.25,249.24,316.0421]
[1737612521393,0.0001,249.25,249.24,24.0421]
[1737612521902,23.576984,249.3,249.25,20.0]
[1737612522104,1.5177,249.31,249.24,0.03]
[1737612522105,11.58236054,249.29,249.24,0.03]
[1737612522787,17.59366054,249.29,249.24,0.03]
[1737612523412,11.58236054,249.27,249.24,0.03]
[1737612523786,11.58236054,249.25,249.24,0.03]
[1737612524403,35.35924454,249.25,249.24,0.03]
[1737612525107,39.37124454,249.25,249.24,0.03]
[1737612527890,20.0,249.17,249.03,11.58236054]
[1737612528121,23.776884,249.12,249.04,4.0153]
[1737612528306,23.776884,249.12,249.07,312.03]
[1737612528499,29.788184,249.12,249.07,0.03]
[1737612529189,23.776884,249.12,249.07,0.03]
[1737612529810,23.776884,249.14,249.07,0.03]
[1737612530398,23.776884,249.14,249.07,4.0449]
[1737612530708,11.58236054,249.18,249.12,11.58236054]
[1737612530902,7.6054,249.19,249.12,11.58236054]
[1737612531103,23.776884,249.18,249.12,11.58236054]
[1737612531303,106.876884,249.18,249.12,11.58236054]
[1737612531523,106.876884,249.18,249.12,312.0]
[1737612531814,83.1,249.18,249.12,312.0]
[1737612532011,94.68236054,249.18,249.12,312.0]
[1737612532198,23.776884,249.17,249.12,312.0]
[1737612532399,23.776884,249.17,249.13,4.0139]
[1737612534406,23.776884,249.17,249.1,31.58236054]
[1737612534599,23.776884,249.17,249.11,4.0442]
[1737612535411,94.68236054,249.23,249.16,11.58236054]
[1737612535610,83.1,249.23,249.16,11.58236054]
[1737612536113,83.1,249.23,249.16,323.58236054]
[1737612536300,23.776884,249.22,249.16,323.58236054]
[1737612536502,23.776884,249.22,249.17,4.0133]
[1737612537411,23.776884,249.22,249.18,11.58236054]
[1737612538514,23.776884,249.22,249.19,4.013]
[1737612539617,23.776884,249.22,249.19,316.013]
[1737612540294,0.063,249.25,249.2,11.58236054]
[1737612540495,0.063,249.25,249.22,11.58236054]
[1737612541453,0.063,249.25,249.2,11.58236054]
[1737612541627,0.063,249.25,249.19,4.013]
[1737612541628,23.776884,249.24,249.19,4.013]
[1737612542325,0.063,249.25,249.19,4.013]
[1737612543215,0.063,249.25,249.19,4.043]
[1737612543515,0.063,249.25,249.19,316.043]
[1737612543708,83.163,249.25,249.19,316.043]
[1737612544736,23.776884,249.24,249.19,316.043]
[1737612545530,23.776884,249.24,249.19,4.043]
[1737612545835,23.776884,249.24,249.19,0.03]
[1737612546919,83.163,249.25,249.22,11.58236054]
[1737612547830,83.163,249.25,249.23,7.41227815]
[1737612548028,83.1,249.32,249.23,7.41227815]
[1737612548204,83.1,249.32,249.27,7.41227815]
[1737612548637,83.1,249.32,249.27,319.41227815]
[1737612549132,0.063,249.35,249.31,7.41227815]
[1737612549435,0.063,249.35,249.28,4.0115]
[1737612549436,0.063,249.35,249.33,7.41227815]
[1737612549806,0.063,249.35,249.34,11.56986504]
[1737612550034,0.0001,249.35,249.34,11.56986504]
[1737612550334,0.0001,249.35,249.34,12.17119405]
[1737612550804,0.0001,249.35,249.34,11.56986504]
[1737612551001,0.0001,249.35,249.34,15.58036504]
[1737612551339,0.0001,249.35,249.32,11.56986504]
[1737612552215,0.0001,249.35,249.32,323.56986504]
[1737612554213,0.0001,249.35,249.32,312.0]
[1737612556444,0.0001,249.35,249.34,11.56986504]
[1737612558142,0.0001,249.35,249.34,15.58036504]
[1737612559416,0.0001,249.35,249.34,327.58036504]
[1737612565344,0.0001,249.37,249.35,30.0]
[1737612565529,0.0001,249.37,249.36,23.74101664]
[1737612565727,0.0001,249.38,249.37,20.0]
[1737612566730,0.0001,249.38,249.37,4.0101]
[1737612567252,0.0001,249.38,249.37,25.5767]
[1737612567556,0.063,249.41,249.4,20.0]
[1737612567755,0.063,249.41,249.4,31.56986504]
[1737612568445,0.063,249.41,249.4,343.56986504]
[1737612568978,0.063,249.47,249.4,357.60346504]
[1737612569122,0.063,249.47,249.45,11.56986504]
[1737612569329,0.03,249.53,249.5,20.0]
[1737612569527,83.1,249.63,249.55,20.0]
[1737612569827,83.1,249.63,249.59,11.56986504]
[1737612570133,83.1,249.63,249.57,11.56986504]
[1737612570453,83.1,249.63,249.59,11.56986504]
[1737612570953,1.6081,249.67,249.61,11.56986504]
[1737612571126,1.6081,249.67,249.61,15.57596504]
[1737612572250,83.1,249.69,249.61,327.57596504]
[1737612572640,23.776884,249.65,249.61,312.0]
[1737612573051,11.56986504,249.68,249.61,312.0]
[1737612573246,35.34674904,249.68,249.61,312.0]
[1737612573453,11.56986504,249.68,249.61,312.0]
[1737612573858,23.776884,249.67,249.61,312.0]
[1737612575064,23.776884,249.65,249.57,15.57656504]
[1737612577059,23.776884,249.61,249.53,15.57716504]
[1737612577760,23.776884,249.61,249.53,11.56986504]
[1737612577961,23.776884,249.57,249.53,0.063]
[1737612582172,83.1,249.58,249.53,15.64036504]
[1737612583368,23.776884,249.57,249.53,15.64036504]
[1737612584975,23.776884,249.57,249.55,312.0]
[1737612586168,83.1,249.58,249.55,312.0]
[1737612587872,23.776884,249.57,249.55,312.0]
[1737612588073,23.776884,249.57,249.53,0.063]
[1737612589983,23.806884,249.57,249.53,0.063]
[1737612590278,27.813784,249.57,249.53,0.063]
[1737612590655,23.806884,249.57,249.53,0.063]
[1737612591072,23.806884,249.57,249.53,312.063]
[1737612591880,23.806884,249.57,249.53,316.0705]
[1737612592071,23.806884,249.57,249.53,4.0705]
[1737612592665,23.806884,249.57,249.53,0.063]
[1737612593676,0.03,249.57,249.55,11.56986504]
[1737612594072,0.03,249.57,249.55,15.57696504]
[1737612595077,0.03,249.57,249.56,312.0]
[1737612600884,82.63,249.58,249.56,312.0]
[1737612601088,82.63,249.58,249.55,15.57696504]
[1737612601893,0.03,249.57,249.55,15.57696504]
[1737612603087,0.03,249.65,249.6,20.0]
[1737612603272,0.03,249.65,249.6,11.56986504]
[1737612603682,23.806884,249.65,249.57,7.39209964]
[1737612603998,23.806884,249.65,249.64,312.0]
[1737612605086,0.03,249.65,249.64,312.0]
[1737612605590,20.0,249.62,249.53,7.45509964]
[1737612605899,23.776884,249.55,249.53,0.063]
[1737612606588,11.55816281,249.58,249.53,0.063]
[1737612606789,23.776884,249.55,249.53,0.063]
[1737612608611,23.776884,249.55,249.53,312.063]
[1737612609111,82.63,249.54,249.53,312.063]
[1737612610500,82.13,249.54,249.53,312.063]
[1737612610899,105.906884,249.54,249.53,312.063]
[1737612612411,82.13,249.54,249.53,0.063]
[1737612615004,0.03,249.57,249.53,0.063]
[1737612615203,0.03,249.57,249.56,312.0]
[1737612616002,23.806884,249.57,249.56,312.0]
[1737612616404,23.806884,249.57,249.53,0.063]
[1737612619200,0.03,249.57,249.53,4.0704]
[1737612619406,0.03,249.57,249.56,312.0]
[1737612619783,0.03,249.57,249.54,11.55816281]
[1737612619981,0.03,249.57,249.56,11.55816281]
[1737612621007,0.03,249.57,249.56,15.56516281]
[1737612621207,0.03,249.65,249.59,20.0]
[1737612621405,0.03,249.65,249.61,11.55816281]
[1737612621581,0.03,249.65,249.63,11.55816281]
[1737612622882,0.03,249.65,249.64,312.0]
[1737612623084,0.03,249.65,249.64,316.0057]
[1737612623418,0.03,249.65,249.64,312.0]
[1737612629619,0.03,249.65,249.61,11.55816281]
[1737612629803,0.03,249.65,249.6,4.0064]
[1737612630004,0.03,249.65,249.61,11.55816281]
[1737612631124,0.03,249.65,249.63,11.55816281]
[1737612632122,82.13,249.71,249.63,11.55816281]
[1737612632123,13.06646281,249.77,249.66,20.0]
[1737612632322,11.55816281,249.79,249.69,11.55816281]
[1737612632701,23.776884,249.78,249.74,312.0]
[1737612632930,11.55816281,249.79,249.74,312.0]
[1737612633296,82.13,249.81,249.74,4.004]
[1737612633496,15.03,249.82,249.75,11.55816281]
[1737612634021,15.03,249.82,249.77,11.55816281]
[1737612634191,15.03,249.82,249.81,31.55816281]
[1737612634594,15.03,249.82,249.79,11.55816281]
[1737612635329,15.03,249.82,249.8,4.0032]
[1737612635823,15.03,249.82,249.81,20.0]
[1737612636126,15.03,249.82,249.81,31.55816281]
[1737612636320,15.03,249.82,249.81,343.55816281]
[1737612637925,10.0,249.83,249.81,385.11632562]
[1737612638224,1.58761146,249.91,249.82,4.0028]
[1737612638422,1.58761146,249.91,249.84,23.11632562]
[1737612638597,1.58761146,249.91,249.87,20.0]
[1737612638800,1.58761146,249.91,249.89,11.55816281]
[1737612639623,1.58761146,249.91,249.89,15.55986281]
[1737612640125,1.58761146,249.91,249.89,11.55816281]
[1737612641024,1.58761146,249.91,249.89,323.55816281]
[1737612642933,1.58761146,249.91,249.89,327.55986281]
[1737612645831,0.0001,249.9,249.89,365.79406281]
[1737612646721,0.0001,249.9,249.89,335.79406281]
[1737612647534,0.0001,249.9,249.89,365.79406281]
[1737612647825,1.146e-05,249.91,249.89,365.79406281]
[1737612648033,1.146e-05,249.91,249.9,0.59995983]
[1737612648910,1.146e-05,249.91,249.89,23.79406281]
[1737612649326,1.146e-05,249.91,249.89,24.3941016]
[1737612650125,0.03001146,249.91,249.89,24.3941016]
[1737612651023,0.03,250.04,249.89,24.3941016]
[1737612651024,16.016549,250.15,250.09,6.4549]
[1737612651334,0.03,250.15,250.07,11.55816281]
[1737612651732,23.806884,250.15,250.08,20.0]
[1737612651936,23.776884,250.13,250.03,11.55816281]
[1737612652322,0.03,250.15,249.99,5.09410954]
[1737612652323,0.03,250.15,250.07,11.55816281]
[1737612653334,23.806884,250.15,250.07,11.55816281]
[1737612653744,23.806884,250.15,250.05,11.55816281]
[1737612654539,23.306884,250.15,250.14,312.0]
[1737612655035,23.306884,250.15,250.05,11.55816281]
[1737612655236,11.55816281,250.14,250.05,11.55816281]
[1737612656235,6.4452,250.16,250.09,11.55816281]
[1737612657039,6.4452,250.16,250.09,15.55656281]
[1737612657417,23.776884,250.15,250.09,15.55656281]
[1737612657612,23.776884,250.15,250.05,11.55816281]
[1737612657812,23.776884,250.15,250.13,312.0]
[1737612658814,35.33504681,250.14,250.13,312.0]
[1737612659629,11.55816281,250.14,250.06,3.9989]
[1737612660031,15.55586281,250.14,250.05,11.55816281]
[1737612660423,15.55596281,250.14,250.05,11.55816281]
[1737612661033,15.55596281,250.14,250.05,15.55726281]
[1737612661616,11.55816281,250.14,250.05,15.55726281]
[1737612661813,23.776884,250.09,250.01,11.55816281]
[1737612662140,23.776884,250.07,249.99,11.55816281]
[1737612662544,23.776884,250.07,250.03,312.0]
[1737612662917,23.276884,250.07,250.03,312.0]
[1737612663524,11.55816281,250.06,249.98,4.0003]
[1737612663926,11.55816281,250.06,249.97,11.55816281]
[1737612664445,6.4452,250.03,249.95,15.55886281]
[1737612664950,23.776884,250.02,249.95,15.55886281]
[1737612665251,11.55816281,250.08,250.01,11.55816281]
[1737612666143,23.776884,250.07,250.01,11.55816281]
[1737612666446,23.776884,250.07,250.02,312.0]
[1737612666943,6.4477,250.09,250.02,312.0]
[1737612667144,6.4477,250.09,250.03,11.55816281]
[1737612667321,0.03,250.14,250.05,11.55816281]
[1737612667322,11.58816281,250.14,250.05,11.55816281]
[1737612667739,23.776884,250.13,250.05,11.55816281]
[1737612667938,0.03,250.14,250.1,11.55816281]
[1737612668220,0.03,250.14,250.12,11.55816281]
[1737612668421,0.03,250.14,250.13,3.9979]
[1737612670137,0.03,250.14,250.13,315.9979]
[1737612670840,6.4455,250.27,250.13,315.9979]
[1737612670841,6.4455,250.27,250.21,20.0]
[1737612671235,1.5189,250.3,250.23,20.0]
[1737612671438,11.55816281,250.29,250.23,20.0]
[1737612672032,11.55816281,250.31,250.22,11.55816281]
[1737612672856,11.55816281,250.31,250.23,3.9963]
[1737612673825,11.55816281,250.31,250.22,11.55816281]
[1737612674128,11.55816281,250.31,250.27,312.0]
[1737612674333,23.776884,250.32,250.27,312.0]
[1737612675049,18.00366281,250.33,250.27,312.0]
[1737612676759,18.00366281,250.33,250.24,15.55416281]
[1737612677057,11.55816281,250.35,250.26,11.55816281]
[1737612677228,23.776884,250.34,250.26,11.55816281]
[1737612677652,11.55816281,250.35,250.26,11.55816281]
[1737612678029,23.776884,250.34,250.26,11.55816281]
[1737612678834,23.776884,250.34,250.27,3.9956]
[1737612679040,23.776884,250.32,250.24,11.55816281]
[1737612679353,23.776884,250.3,250.22,11.55816281]
[1737612679746,23.776884,250.3,250.24,312.0]
[1737612680247,11.55816281,250.31,250.24,312.0]
[1737612680751,15.55316281,250.31,250.24,312.0]
[1737612680937,23.776884,250.3,250.24,11.55816281]
[1737612681137,15.55296281,250.33,250.24,11.55816281]
[1737612682638,15.55296281,250.33,250.26,11.55816281]
[1737612682639,11.55816281,250.33,250.26,11.55816281]
[1737612682840,35.33504681,250.33,250.26,11.55816281]
[1737612683156,23.776884,250.32,250.26,11.55816281]
[1737612683749,15.55286281,250.33,250.26,11.55816281]
[1737612684058,15.55286281,250.33,250.26,323.55816281]
[1737612685469,15.55286281,250.33,250.26,312.0]
[1737612685637,15.55286281,250.33,250.24,11.55816281]
[1737612685842,11.55816281,250.31,250.24,15.55426281]
[1737612686169,0.03,250.35,250.28,11.55816281]
[1737612686759,0.03,250.35,250.3,11.55816281]
[1737612688663,0.03,250.35,250.32,312.0]
[1737612690442,0.03,250.35,250.3,15.55326281]
[1737612691051,23.776884,250.3,250.2,11.55816281]
[1737612691248,11.55816281,250.27,250.18,11.55816281]
[1737612691448,11.55816281,250.31,250.22,11.55816281]
[1737612691654,12.55816281,250.31,250.22,11.55816281]
[1737612691951,11.55816281,250.26,250.17,11.55816281]
[1737612692166,23.776884,250.25,250.17,11.55816281]
[1737612693160,11.55816281,250.24,250.15,15.55566281]
[1737612693359,23.776884,250.26,250.19,312.0]
[1737612694070,11.55816281,250.29,250.2,11.55816281]
[1737612694253,11.55816281,250.29,250.15,13.9915]
[1737612694254,11.55816281,250.27,250.18,11.55816281]
[1737612694460,11.55816281,250.25,250.16,11.55816281]
[1737612695679,11.55816281,250.25,250.17,3.9972]
[1737612695849,23.776884,250.24,250.17,3.9972]
[1737612696962,23.776884,250.24,250.22,312.0]
[1737612697276,35.33504681,250.23,250.22,312.0]
[1737612697951,23.776884,250.22,250.12,3.9979]
[1737612698157,23.776884,250.22,250.1,11.55816281]
[1737612698158,11.55816281,250.19,250.13,4.0608]
[1737612698574,11.55816281,250.17,250.13,0.063]
[1737612700579,11.55816281,250.15,250.13,0.063]
[1737612700871,23.776884,250.14,250.13,0.063]
[1737612702575,24.776884,250.14,250.13,0.063]
[1737612703669,1.0,250.09,250.03,0.063]
[1737612703883,35.33504681,250.04,250.03,0.063]
[1737612710449,36.33504681,250.04,250.03,0.063]
[1737612710875,1.0,250.02,249.86,4.0021]
[1737612711062,11.55816281,249.94,249.88,0.063]
[1737612711465,11.55816281,249.94,249.88,20.063]
[1737612711678,11.55816281,249.94,249.88,0.063]
[1737612711872,11.55816281,249.92,249.88,0.063]
[1737612712374,35.33504681,249.92,249.91,312.0]
[1737612714102,11.55816281,249.94,249.88,0.063]
[1737612714256,11.55816281,249.94,249.89,4.0017]
[1737612714577,11.55816281,249.98,249.9,4.49266064]
[1737612714973,11.55816281,249.97,249.9,4.49266064]
[1737612715383,11.55816281,249.97,249.91,4.0014]
[1737612716400,23.776884,249.94,249.89,4.0017]
[1737612716893,4.0003,249.98,249.89,4.0017]
[1737612716894,11.55816281,249.93,249.92,312.0]
[1737612718694,35.33504681,249.93,249.92,312.0]
[1737612719114,23.776884,249.92,249.88,0.063]
[1737612719399,11.55816281,249.93,249.88,0.063]
[1737612719600,23.776884,249.92,249.88,0.063]
[1737612719776,23.776884,249.92,249.88,4.0648]
[1737612720176,23.776884,249.92,249.88,0.063]
[1737612720395,23.776884,249.92,249.88,4.0648]
[1737612722201,23.776884,249.92,249.91,312.0]
[1737612727284,23.776884,249.92,249.88,0.063]
[1737612727488,11.55816281,249.91,249.88,0.063]
[1737612727709,23.776884,249.9,249.88,0.063]
[1737612730397,23.776884,249.9,249.88,312.063]
[1737612733615,11.55816281,249.89,249.88,312.063]
[1737612733817,35.33504681,249.89,249.88,312.063]
[1737612740416,35.33504681,249.89,249.88,0.063]
[1737612740622,39.33674681,249.89,249.88,0.063]
[1737612743923,31.15708008,249.89,249.88,0.063]
[1737612744698,89.51019608,249.92,249.88,0.063]
[1737612745095,10.0002,250.0,249.88,0.063]
[1737612745096,7.41019608,249.98,249.89,7.38019608]
[1737612745320,7.41019608,249.98,249.91,7.38019608]
[1737612745521,7.38019608,249.94,249.88,24.0647]
[1737612745724,23.776884,249.93,249.88,11.58737304]
[1737612746426,11.52437304,249.95,249.88,15.58917304]
[1737612746926,23.776884,249.94,249.88,15.58917304]
[1737612747600,23.776884,249.94,249.93,312.0]
[1737612751435,0.03,249.98,249.93,312.0]
[1737612751727,0.03,249.98,249.92,11.52437304]
[1737612751932,0.03,249.98,249.93,4.001]
[1737612752332,0.03,249.98,249.96,11.52437304]
[1737612753513,0.0001,249.98,249.97,12.43614439]
[1737612753829,0.03,250.13,250.02,20.0]
[1737612754025,0.03,250.13,250.1,11.52437304]
[1737612754531,0.03,250.13,250.12,312.0]
[1737612755506,0.03,250.13,250.03,11.52437304]
[1737612755507,23.806884,250.13,250.03,11.52437304]
[1737612755929,23.776884,250.11,250.06,20.0]
[1737612756221,0.03,250.13,250.07,11.52437304]
[1737612756424,0.03,250.13,250.09,11.52437304]
[1737612756708,0.03,250.13,250.07,11.52437304]
[1737612756912,0.03,250.13,250.11,11.52437304]
[1737612757440,0.03,250.13,250.12,0.59958945]
[1737612757612,0.03,250.13,250.11,11.52437304]
[1737612757926,0.03,250.13,250.12,20.0]
[1737612758533,0.03,250.13,250.12,332.0]
[1737612760533,0.03,250.13,250.12,312.0]
[1737612763726,0.03,250.13,250.05,15.52337304]
[1737612763935,0.03,250.13,250.07,11.52437304]
[1737612764314,0.03,250.13,250.12,20.0]
[1737612764630,0.03,250.13,250.11,11.52437304]
[1737612765434,0.03,250.13,250.12,3.998]
[1737612766754,0.03,250.13,250.12,315.998]
[1737612770332,0.03,250.23,250.18,11.52437304]
[1737612771334,0.03,250.23,250.22,15.52077304]
[1737612773541,0.03,250.23,250.22,327.52077304]
[1737612774252,0.03,250.23,250.22,323.52437304]
[1737612775030,0.03,250.23,250.22,312.0]
[1737612775835,0.03,250.23,250.16,11.52437304]
[1737612776032,0.03,250.23,250.16,15.52177304]
[1737612776558,0.03,250.23,250.14,17.06667304]
[1737612776932,0.03,250.23,250.17,20.0]
[1737612777256,0.03,250.23,250.14,17.06667304]
[1737612778158,0.03,250.23,250.17,20.0]
[1737612778763,0.03,250.23,250.21,312.0]
[1737612779865,23.776884,250.22,250.21,312.0]
[1737612780344,0.03,250.23,250.21,312.0]
[1737612780748,0.03,250.23,250.21,315.9965]
[1737612781161,0.03,250.23,250.21,3.9965]
[1737612781646,0.03,250.23,250.21,15.52087304]
[1737612781844,0.03,250.23,250.21,3.9965]
[1737612782462,0.03,250.23,250.21,15.52087304]
[1737612783034,0.03,250.23,250.21,16.12012695]
[1737612783758,0.03,250.23,250.21,22.61162695]
[1737612784256,0.03,250.23,250.22,312.0]
[1737612791750,0.03,250.25,250.24,20.0]
[1737612791952,0.03,250.25,250.24,31.52437304]
[1737612794369,0.03,250.25,250.24,55.30125704]
[1737612794870,0.03,250.25,250.24,367.30125704]
[1737612797978,0.03,250.25,250.24,343.52437304]
[1737612798184,0.03,250.25,250.24,312.0]
[1737612806288,0.03,250.25,250.24,323.52437304]
[1737612807681,0.03,250.25,250.24,319.96539833]
[1737612810291,0.03,250.25,250.24,312.0]
[1737612819195,0.03,250.25,250.23,0.063]
[1737612819920,7.99539833,250.25,250.23,0.063]
[1737612821609,11.99149833,250.25,250.23,0.063]
[1737612822110,11.99149833,250.25,250.23,312.063]
[1737612822896,7.99539833,250.25,250.23,0.063]
[1737612824682,11.99139833,250.25,250.23,0.063]
[1737612826905,44.85299165,250.25,250.23,0.063]
[1737612827112,45.85299165,250.25,250.23,0.063]
[1737612827604,45.35299165,250.25,250.23,0.063]
[1737612827909,45.35299165,250.25,250.23,0.0001]
[1737612828714,44.35299165,250.25,250.23,0.0001]
[1737612829010,45.35299165,250.25,250.23,0.0001]
[1737612829310,46.9750839,250.25,250.23,0.0001]
[1737612829711,1.0,250.24,250.23,0.0001]
[1737612831017,45.9750839,250.25,250.23,0.0001]
[1737612831212,11.99139833,250.25,250.23,0.0001]
[1737612834708,44.85299165,250.25,250.23,0.0001]
[1737612835727,48.85119165,250.25,250.23,0.0001]
[1737612837518,49.85119165,250.25,250.23,0.0001]
[1737612838504,48.85119165,250.25,250.23,0.0001]
[1737612840420,48.85119165,250.25,250.15,312.0]
[1737612840421,1.0,250.22,250.15,312.0]